bitfinex-derivatives/quotes_BTCF0:USTF0_20251215
["timestamp","ask_amount","ask_price","bid_price","bid_amount"]
[1765817816529,0.3608,86297.0,86296.0,0.32933]
[1765817816730,0.011674,86305.0,86304.0,0.3409171]
[1765817816932,8.69e-05,86305.0,86304.0,0.6748571]
[1765817817235,0.69101,86301.0,86300.0,0.0115876]
[1765817817532,1.05181,86301.0,86300.0,0.0115876]
[1765817818123,0.7025986,86293.0,86292.0,0.00017382]
[1765817818320,1.0633986,86293.0,86292.0,0.00017382]
[1765817818931,0.7017,86293.0,86292.0,0.66344382]
[1765817819322,0.7027,86293.0,86292.0,0.66344382]
[1765817819522,0.3618,86293.0,86292.0,0.66344382]
[1765817819924,1.04897,86293.0,86292.0,0.00017382]
[1765817820125,1.04997,86293.0,86292.0,0.00017382]
[1765817820429,1.23997,86293.0,86292.0,0.00017382]
[1765817820618,1.05997,86293.0,86292.0,0.00017382]
[1765817820822,1.05997,86293.0,86292.0,3.82e-06]
[1765817821021,1.04997,86293.0,86292.0,3.82e-06]
[1765817821928,1.04897,86293.0,86292.0,3.82e-06]
[1765817822234,1.05097,86293.0,86292.0,3.82e-06]
[1765817822642,1.05197,86293.0,86292.0,3.82e-06]
[1765817823237,1.05197,86293.0,86264.0,0.0115924]
[1765817823238,0.70021,86267.0,86264.0,0.0115924]
[1765817823427,9.76e-05,86267.0,86266.0,0.67877]
[1765817823628,9.76e-05,86267.0,86266.0,0.69936387]
[1765817823836,9.76e-05,86267.0,86266.0,0.81524879]
[1765817824025,0.7003076,86267.0,86266.0,0.13647879]
[1765817824230,0.7003076,86267.0,86266.0,0.02059387]
[1765817824428,2e-08,86275.0,86274.0,0.6903612]
[1765817824632,1.0725989,86291.0,86290.0,0.67877]
[1765817824832,0.34939,86290.0,86289.0,0.0115891]
[1765817825033,0.3608,86291.0,86290.0,0.79468985]
[1765817825327,1.06101,86291.0,86280.0,0.23596651]
[1765817825530,0.70021,86281.0,86280.0,0.0115904]
[1765817825727,0.3608,86283.0,86282.0,0.67877]
[1765817827827,9.979e-05,86290.0,86289.0,0.6963291]
[1765817828435,0.67853979,86290.0,86289.0,0.12748745]
[1765817828737,0.67844,86283.0,86282.0,0.002]
[1765817828930,1.03924,86283.0,86282.0,0.003]
[1765817829132,1.03924,86283.0,86282.0,0.001]
[1765817829536,0.6900301,86282.0,86281.0,0.0115902]
[1765817829741,0.6900301,86282.0,86277.0,0.00017382]
[1765817829742,0.67844,86278.0,86277.0,0.00017382]
[1765817832537,1.03924,86281.0,86280.0,0.67566]
[1765817832737,1.03924,86281.0,86280.0,0.88573]
[1765817832935,0.68605,86279.0,86278.0,0.0115906]
[1765817833239,0.67687,86278.0,86277.0,0.00017382]
[1765817833441,0.67687,86278.0,86277.0,0.34325382]
[1765817833626,0.003,86278.0,86277.0,0.67940382]
[1765817834126,0.71167,86278.0,86277.0,0.00017382]
[1765817834435,0.35786,86278.0,86277.0,0.67582382]
[1765817834833,0.003,86278.0,86277.0,0.67582382]
[1765817835034,0.002,86278.0,86277.0,0.79172889]
[1765817835236,0.3608,86281.0,86277.0,0.79172889]
[1765817835237,0.6968,86281.0,86280.0,0.87739]
[1765817835440,0.6968,86281.0,86280.0,0.5296]
[1765817835738,0.68781,86279.0,86278.0,0.0115906]
[1765817835941,0.68781,86279.0,86278.0,0.3394506]
[1765817836139,0.334,86279.0,86278.0,0.6872406]
[1765817836340,0.3628,86281.0,86280.0,0.87839]
[1765817836543,0.3608,86281.0,86280.0,0.87839]
[1765817836737,0.3723902,86281.0,86280.0,0.87839]
[1765817836936,1.04861,86281.0,86280.0,0.99429373]
[1765817837240,9.979e-05,86290.0,86289.0,0.6872391]
[1765817838740,9.979e-05,86290.0,86289.0,0.6882391]
[1765817839132,9.979e-05,86290.0,86289.0,0.6872391]
[1765817839343,0.33409979,86290.0,86289.0,0.6882391]
[1765817839535,0.68139979,86290.0,86289.0,0.0125891]
[1765817839738,9.979e-05,86290.0,86289.0,0.80121805]
[1765817839938,0.67156979,86290.0,86289.0,0.45651805]
[1765817840132,0.67156979,86290.0,86289.0,0.80221805]
[1765817840133,9.979e-05,86290.0,86289.0,0.80221805]
[1765817840333,9.979e-05,86290.0,86289.0,0.83154677]
[1765817840538,0.0115862,86311.0,86310.0,0.0115863]
[1765817840739,0.41417,86311.0,86310.0,0.3396263]
[1765817840943,0.3608,86312.0,86311.0,0.67374]
[1765817841336,0.68497,86312.0,86311.0,0.67374]
[1765817841637,0.68506745,86312.0,86311.0,0.78960075]
[1765817842138,9.745e-05,86312.0,86311.0,0.78960075]
[1765817842343,0.00017382,86320.0,86319.0,0.6786451]
[1765817842641,0.3608,86341.0,86337.0,0.6786427]
[1765817842846,0.02231649,86338.0,86337.0,0.6786427]
[1765817843344,0.37711723,86338.0,86337.0,0.66706]
[1765817843643,0.37711723,86338.0,86328.0,0.44500771]
[1765817843644,0.67523,86337.0,86336.0,0.0115828]
[1765817843845,0.33195,86333.0,86332.0,0.0115833]
[1765817844040,0.0115834,86332.0,86331.0,0.3262]
[1765817844539,0.6868134,86332.0,86331.0,0.02075264]
[1765817844738,0.67523,86330.0,86329.0,0.00017382]
[1765817845239,1.03603,86330.0,86329.0,0.02078899]
[1765817846538,1.03603,86330.0,86329.0,0.02178899]
[1765817846741,1.03803,86330.0,86329.0,0.02178899]
[1765817847740,0.3628,86330.0,86329.0,0.67271899]
[1765817847940,0.3628,86330.0,86329.0,0.67171899]
[1765817848337,0.3618,86330.0,86329.0,0.67171899]
[1765817848650,0.69375,86330.0,86329.0,0.67171899]
[1765817848850,0.3618,86330.0,86329.0,0.67171899]
[1765817849037,0.3608,86330.0,86329.0,0.67171899]
[1765817849546,0.3608,86330.0,86329.0,0.67271899]
[1765817849950,1.02669,86330.0,86329.0,0.34798899]
[1765817850241,1.02669,86330.0,86329.0,0.02178899]
[1765817850446,1.02669,86330.0,86329.0,0.69764899]
[1765817851338,1.02669,86330.0,86329.0,0.69664899]
[1765817851546,1.02669,86330.0,86329.0,0.02178899]
[1765817851949,1.02669,86330.0,86329.0,0.02078899]
[1765817852141,1.02669,86330.0,86329.0,0.02178899]
[1765817852643,1.02669,86330.0,86329.0,0.02078899]
[1765817853043,1.21769,86330.0,86329.0,0.02078899]
[1765817853248,1.02769,86330.0,86329.0,0.02078899]
[1765817853454,1.07769,86330.0,86329.0,0.70988899]
[1765817853749,1.07769,86330.0,86329.0,0.02078899]
[1765817854550,0.7239557,86315.0,86306.0,0.02937504]
[1765817854735,1.4455557,86315.0,86314.0,0.02117825]
[1765817855550,0.7239578,86299.0,86284.0,0.14311659]
[1765817855748,0.7239578,86299.0,86280.0,0.21374]
[1765817855749,1.4455578,86299.0,86290.0,0.00017382]
[1765817856048,1.4455578,86299.0,86298.0,0.02323594]
[1765817856251,1.4455578,86299.0,86298.0,0.00231756]
[1765817856552,1.64568909,86299.0,86298.0,0.00231756]
[1765817856852,1.64568909,86299.0,86298.0,0.02309846]
[1765817857953,1.64768909,86299.0,86298.0,0.02309846]
[1765817858158,1.54868909,86299.0,86298.0,0.02309846]
[1765817858547,1.54568909,86299.0,86298.0,0.02309846]
[1765817858757,1.55068909,86299.0,86298.0,0.02309846]
[1765817861451,1.54768909,86299.0,86298.0,0.36216846]
[1765817861653,0.36293129,86299.0,86298.0,0.71219846]
[1765817861855,0.00313129,86299.0,86298.0,0.82807532]
[1765817862953,0.71595129,86299.0,86298.0,0.83107532]
[1765817863261,0.36293129,86299.0,86298.0,0.83107532]
[1765817863952,0.36093129,86299.0,86298.0,0.83207532]
[1765817864557,1.07330129,86299.0,86298.0,0.02609846]
[1765817864752,1.23330129,86299.0,86298.0,0.02509846]
[1765817864955,0.7239589,86291.0,86290.0,0.00017382]
[1765817865256,1.9890789,86291.0,86290.0,0.00017382]
[1765817865460,1.8590789,86291.0,86290.0,0.02093976]
[1765817865652,1.8590789,86291.0,86290.0,0.00017382]
[1765817865853,1.8590789,86291.0,86290.0,0.02125645]
[1765817866057,1.1247589,86291.0,86290.0,0.02125645]
[1765817866360,1.11417,86291.0,86290.0,0.02125645]
[1765817866558,1.1257589,86291.0,86290.0,0.02125645]
[1765817867646,1.0847589,86291.0,86290.0,0.02125645]
[1765817868051,0.3723889,86291.0,86290.0,0.71035645]
[1765817868255,0.36510511,86299.0,86298.0,0.33907]
[1765817868562,0.36110511,86299.0,86298.0,0.6891]
[1765817868948,0.71412511,86299.0,86298.0,0.6891]
[1765817869153,0.0115886,86293.0,86292.0,0.54265]
[1765817869359,0.0115886,86294.0,86293.0,0.7006886]
[1765817869564,0.0115886,86294.0,86293.0,0.81656546]
[1765817869752,0.0115886,86294.0,86293.0,0.7006886]
[1765817870354,0.0115886,86294.0,86293.0,0.6891]
[1765817870565,0.7239586,86294.0,86293.0,0.6891]
[1765817871753,0.71237,86291.0,86290.0,0.02125645]
[1765817872066,1.07317,86291.0,86290.0,0.02125645]
[1765817872962,1.07317,86291.0,86271.0,0.83221659]
[1765817872963,0.7239614,86272.0,86271.0,0.83221659]
[1765817873168,0.7239617,86270.0,86269.0,9.661e-05]
[1765817873566,0.7239617,86270.0,86269.0,0.02137497]
[1765817873869,0.0115917,86270.0,86269.0,0.82636258]
[1765817874063,0.7239617,86270.0,86269.0,0.02137497]
[1765817874570,0.7239617,86270.0,86269.0,0.02437497]
[1765817874771,0.7239617,86270.0,86269.0,0.02737497]
[1765817874963,0.3608,86272.0,86271.0,0.6891]
[1765817875462,0.71382,86272.0,86271.0,0.6891]
[1765817875860,1.07317,86272.0,86271.0,0.6891]
[1765817876061,0.71237,86270.0,86269.0,0.02737497]
[1765817876858,0.71237,86270.0,86269.0,0.02437497]
[1765817877066,0.71237,86270.0,86269.0,0.02137497]
[1765817877576,0.71237,86270.0,86269.0,0.02437497]
[1765817877870,0.71237,86270.0,86269.0,0.02737497]
[1765817878568,0.71237,86270.0,86269.0,0.71647497]
[1765817880769,0.71237,86270.0,86269.0,0.02737497]
[1765817882466,0.0115916,86271.0,86270.0,0.65566]
[1765817882673,0.69715,86270.0,86269.0,0.02737497]
[1765817883571,0.69715,86270.0,86269.0,0.02437497]
[1765817883764,0.69715,86270.0,86269.0,0.02137497]
[1765817883970,0.8685328,86262.0,86261.0,0.00017382]
[1765817884167,1.9636528,86262.0,86261.0,0.00017382]
[1765817884366,1.8038628,86262.0,86261.0,0.00017382]
[1765817884675,0.34138925,86262.0,86261.0,0.79278883]
[1765817884875,0.3608,86272.0,86271.0,0.6672516]
[1765817885064,0.36094342,86272.0,86271.0,0.6672516]
[1765817885574,0.36094342,86272.0,86271.0,0.78316473]
[1765817886160,0.3608,86288.0,86277.0,0.6672508]
[1765817886362,0.3608,86288.0,86287.0,0.3415994]
[1765817886564,0.21992,86305.0,86293.0,0.6672486]
[1765817886565,0.3608,86294.0,86293.0,0.6672486]
[1765817886768,0.4308,86294.0,86293.0,0.6672486]
[1765817887265,1.12803594,86294.0,86293.0,0.6672486]
[1765817887665,1.12803594,86294.0,86293.0,0.65566]
[1765817887880,1.12803594,86294.0,86285.0,0.00017382]
[1765817887881,0.69715,86286.0,86285.0,0.00017382]
[1765817888179,1.05795,86286.0,86285.0,0.00017382]
[1765817889180,1.05795,86286.0,86270.0,0.16120825]
[1765817889181,0.69715,86271.0,86270.0,0.16120825]
[1765817889380,1.05795,86271.0,86270.0,0.65566]
[1765817889977,1.05795,86271.0,86268.0,0.2082519]
[1765817889978,0.69715,86269.0,86268.0,0.19666]
[1765817890174,0.69715,86269.0,86261.0,0.02058476]
[1765817890375,0.69715,86268.0,86260.0,0.00017382]
[1765817890689,0.69715,86268.0,86267.0,0.65566]
[1765817890869,0.69715,86268.0,86267.0,0.32565]
[1765817891177,0.69715,86261.0,86260.0,0.02095844]
[1765817891375,1.05795,86261.0,86260.0,0.02095844]
[1765817891781,1.05795,86261.0,86260.0,0.67661844]
[1765817891982,0.3608,86261.0,86260.0,0.67661844]
[1765817892882,1.05795,86261.0,86260.0,0.67661844]
[1765817893282,1.05795,86261.0,86260.0,0.68061844]
[1765817893685,1.05795,86261.0,86260.0,0.68561844]
[1765817894080,0.3608,86261.0,86260.0,0.68561844]
[1765817894277,1.05795,86261.0,86260.0,0.02995844]
[1765817894482,1.24795,86261.0,86260.0,0.02995844]
[1765817894681,1.24805678,86261.0,86260.0,0.02995844]
[1765817895786,1.84225678,86261.0,86260.0,0.02995844]
[1765817896679,1.10805678,86261.0,86260.0,0.02995844]
[1765817896881,1.84225678,86261.0,86260.0,0.02995844]
[1765817897480,1.84225678,86261.0,86260.0,0.68561844]
[1765817897481,0.36090678,86261.0,86260.0,0.68561844]
[1765817897976,0.00010678,86261.0,86260.0,0.80154635]
[1765817898172,0.3608,86279.0,86276.0,0.6672509]
[1765817898884,0.3608,86286.0,86276.0,0.78317881]
[1765817899082,0.00025619,86277.0,86276.0,0.78317881]
[1765817899882,0.00725619,86277.0,86276.0,0.78317881]
[1765817900078,0.36805619,86277.0,86276.0,0.77158791]
[1765817900390,0.69715,86274.0,86273.0,0.0115912]
[1765817900680,0.69715,86274.0,86268.0,0.19666]
[1765817900681,0.34738,86271.0,86269.0,0.11590641]
[1765817900988,0.34738,86261.0,86251.0,0.73416]
[1765817901178,0.3608,86270.0,86267.0,0.0115921]
[1765817901379,0.3608,86270.0,86269.0,0.65566]
[1765817901583,1.05795,86270.0,86269.0,0.65566]
[1765817901788,0.69715,86268.0,86267.0,0.0115921]
[1765817902083,0.69715,86261.0,86260.0,0.02095844]
[1765817902289,1.05795,86261.0,86260.0,0.03255144]
[1765817903188,1.05895,86261.0,86260.0,0.03255144]
[1765817905179,1.05895,86261.0,86260.0,0.68821144]
[1765817905587,1e-07,86261.0,86260.0,1.37692149]
[1765817905787,1e-07,86261.0,86260.0,2.09852149]
[1765817905975,0.3608,86293.0,86276.0,0.6672509]
[1765817906180,0.3608,86293.0,86292.0,0.8639087]
[1765817906781,0.3723886,86293.0,86292.0,0.8639087]
[1765817907087,0.70818,86293.0,86292.0,0.8639087]
[1765817907286,0.3608,86293.0,86292.0,0.8639087]
[1765817907487,0.3608,86293.0,86292.0,0.8649087]
[1765817907795,0.00017382,86301.0,86300.0,0.6672477]
[1765817907984,0.04017382,86301.0,86300.0,0.6672477]
[1765817908287,0.04017382,86301.0,86300.0,0.65566]
[1765817908485,0.0115883,86295.0,86294.0,0.0115885]
[1765817908682,0.7087383,86295.0,86292.0,0.19866]
[1765817908879,0.34738,86293.0,86292.0,0.19866]
[1765817909185,0.3608,86296.0,86295.0,0.6672483]
[1765817909386,0.3608,86296.0,86295.0,0.65566]
[1765817909588,1.05795,86296.0,86295.0,0.32565]
[1765817910481,1.05795,86296.0,86292.0,0.19666]
[1765817910482,0.3387,86293.0,86292.0,0.19666]
[1765817910990,0.0115883,86295.0,86294.0,0.68927]
[1765817911289,0.3608,86296.0,86295.0,0.7008583]
[1765817912084,0.3608,86296.0,86295.0,0.68927]
[1765817912285,0.6995,86296.0,86295.0,0.68927]
[1765817912488,0.3618,86296.0,86295.0,0.68927]
[1765817912790,0.3628,86296.0,86295.0,0.68927]
[1765817912992,1.05083,86296.0,86295.0,0.35663]
[1765817913893,1.04983,86296.0,86295.0,0.71299]
[1765817914081,0.3618,86296.0,86295.0,0.71299]
[1765817914278,0.3618,86296.0,86292.0,0.19666]
[1765817914279,0.68803,86293.0,86292.0,0.19666]
[1765817914697,0.3618,86296.0,86295.0,0.6938683]
[1765817915280,0.3608,86296.0,86295.0,0.6938683]
[1765817915684,1.04883,86296.0,86295.0,0.68228]
[1765817915886,1.04883,86296.0,86295.0,0.32592]
[1765817916290,1.04983,86296.0,86295.0,0.68228]
[1765817917092,0.001,86296.0,86295.0,0.79816089]
[1765817917401,0.34657382,86301.0,86300.0,0.6938677]
[1765817917600,0.00017382,86301.0,86300.0,0.6938677]
[1765817918000,0.00017382,86301.0,86300.0,0.80974859]
[1765817918901,0.00117382,86301.0,86300.0,0.80974859]
[1765817919291,0.00217382,86301.0,86300.0,0.80974859]
[1765817919594,0.68803,86291.0,86290.0,0.09215446]
[1765817919786,0.68803,86291.0,86290.0,0.693869]
[1765817919787,1.04883,86291.0,86290.0,0.693869]
[1765817920098,0.00217382,86301.0,86300.0,0.6938677]
[1765817920599,0.69020382,86301.0,86300.0,0.6938677]
[1765817920803,0.00117382,86301.0,86300.0,0.6938677]
[1765817920993,0.00117382,86301.0,86300.0,0.80975531]
[1765817921696,0.3608,86318.0,86317.0,0.6938654]
[1765817921903,0.3608,86328.0,86327.0,0.693864]
[1765817922198,0.011583,86335.0,86334.0,0.6938631]
[1765817922397,0.191583,86335.0,86334.0,0.6938631]
[1765817922600,0.191583,86335.0,86334.0,0.68228]
[1765817922901,0.879613,86335.0,86334.0,0.32592]
[1765817923098,0.552383,86335.0,86334.0,0.02114906]
[1765817923303,0.0115836,86331.0,86330.0,0.68228]
[1765817923499,0.3618,86335.0,86334.0,0.68228]
[1765817923701,0.4818,86335.0,86334.0,0.68228]
[1765817923897,0.4818,86335.0,86334.0,0.7026959]
[1765817924098,0.002,86335.0,86334.0,0.81852445]
[1765817924399,0.002,86335.0,86334.0,0.84698083]
[1765817924794,0.001,86335.0,86334.0,0.84698083]
[1765817924994,0.00231649,86338.0,86337.0,0.68228]
[1765817925596,0.00231649,86338.0,86337.0,0.79810452]
[1765817927704,3.82e-06,86343.0,86342.0,0.693862]
[1765817927899,1.04883,86353.0,86352.0,0.0115807]
[1765817928098,1.08883,86353.0,86352.0,0.3375007]
[1765817928504,1.08883,86353.0,86352.0,0.8954907]
[1765817928709,1.1004106,86353.0,86352.0,0.3375007]
[1765817929706,1.1034106,86353.0,86352.0,0.3375007]
[1765817929909,0.4038,86353.0,86352.0,0.88391]
[1765817930310,0.4068,86353.0,86352.0,0.88391]
[1765817931502,0.046,86353.0,86352.0,0.9997144]
[1765817931706,0.006,86353.0,86352.0,0.9997144]
[1765817932103,0.00017371,86361.0,86360.0,0.6938596]
[1765817932309,0.11017371,86361.0,86360.0,0.6938596]
[1765817932512,0.11017371,86361.0,86360.0,0.68228]
[1765817932811,0.68803,86350.0,86349.0,1.070781]
[1765817933009,0.3464,86350.0,86349.0,1.070781]
[1765817934105,0.699611,86350.0,86349.0,1.070781]
[1765817934505,0.69003,86350.0,86349.0,1.070781]
[1765817934709,0.69003,86350.0,86349.0,0.693861]
[1765817934910,0.69203,86350.0,86349.0,0.693861]
[1765817936409,0.004,86350.0,86349.0,0.693861]
[1765817937113,0.00017371,86361.0,86360.0,0.6938596]
[1765817937410,0.011578,86372.0,86371.0,0.0115779]
[1765817937607,0.537978,86372.0,86371.0,0.6938579]
[1765817937810,0.56950618,86372.0,86371.0,0.68228]
[1765817938019,0.56950618,86372.0,86365.0,0.0115789]
[1765817938020,0.3464,86366.0,86365.0,0.0115789]
[1765817938218,0.42792818,86366.0,86365.0,0.6938589]
[1765817938406,0.08152818,86366.0,86365.0,0.6938589]
[1765817938812,0.76955818,86366.0,86365.0,0.80964587]
[1765817939007,0.42792818,86366.0,86365.0,0.80964587]
[1765817939216,0.42792818,86366.0,86365.0,0.81064587]
[1765817939423,0.42792818,86366.0,86365.0,0.90374834]
[1765817940418,1.13035818,86366.0,86365.0,0.003]
[1765817940616,0.08152818,86366.0,86365.0,0.80106697]
[1765817941416,0.03152818,86366.0,86365.0,0.80106697]
[1765817941618,0.00017371,86374.0,86373.0,0.6938579]
[1765817941813,3.71e-06,86374.0,86373.0,1.7876579]
[1765817942117,0.69714371,86374.0,86373.0,0.85573511]
[1765817942420,0.7087188,86366.0,86365.0,0.36024]
[1765817942621,0.0115785,86369.0,86368.0,0.68234]
[1765817942917,0.7171185,86369.0,86368.0,0.68234]
[1765817943233,0.7171185,86369.0,86365.0,0.002]
[1765817943234,0.7087188,86366.0,86365.0,0.002]
[1765817943729,0.7087188,86366.0,86365.0,0.003]
[1765817943915,0.3608,86369.0,86368.0,0.68234]
[1765817944113,3.71e-06,86374.0,86373.0,0.0115779]
[1765817944319,0.3608,86383.0,86382.0,0.6939167]
[1765817944518,0.3608,86390.0,86389.0,0.6939157]
[1765817944822,0.4908,86390.0,86389.0,0.6939157]
[1765817945718,0.4928,86390.0,86389.0,0.6939157]
[1765817946016,0.69714,86387.0,86386.0,0.0115761]
[1765817946217,0.69714,86382.0,86381.0,0.01175041]
[1765817946412,1.05794,86382.0,86381.0,0.00017371]
[1765817947415,1.05894,86382.0,86381.0,0.00017371]
[1765817947919,1.05894,86382.0,86381.0,0.68251371]
[1765817948119,0.3618,86382.0,86381.0,0.68251371]
[1765817948315,0.3618,86382.0,86381.0,0.69409051]
[1765817948824,0.3628,86382.0,86381.0,0.80985603]
[1765817949022,0.3638,86382.0,86381.0,0.80985603]
[1765817949221,0.003,86382.0,86381.0,0.80985603]
[1765817949721,0.001,86382.0,86381.0,0.80985603]
[1765817949921,0.002,86382.0,86381.0,0.80985603]
[1765817950116,0.001,86382.0,86381.0,0.80985603]
[1765817952919,0.0115748,86397.0,86396.0,0.6939148]
[1765817953120,0.5363148,86397.0,86396.0,0.6939148]
[1765817953429,0.18,86397.0,86396.0,0.6939148]
[1765817953834,0.00011532,86398.0,86397.0,0.68234]
[1765817954020,0.76725532,86398.0,86397.0,0.68234]
[1765817954219,0.76725532,86398.0,86388.0,0.1978]
[1765817954220,0.34474,86392.0,86388.0,0.1978]
[1765817954415,0.34474,86392.0,86391.0,0.68234]
[1765817954633,0.34474,86392.0,86391.0,0.77357185]
[1765817955623,0.0115752,86393.0,86392.0,0.6939153]
[1765817955928,0.00311532,86398.0,86397.0,0.6939147]
[1765817956128,0.04311532,86398.0,86397.0,0.6939147]
[1765817956732,0.04011532,86398.0,86397.0,1.54221878]
[1765817956917,0.00011532,86398.0,86397.0,1.54221878]
[1765817957435,0.00011532,86398.0,86397.0,1.54421878]
[1765817957724,0.00011532,86398.0,86397.0,1.54221878]
[1765817957925,0.00011532,86398.0,86397.0,1.54521878]
[1765817958519,0.00011532,86398.0,86397.0,0.81265878]
[1765817958832,0.00011532,86398.0,86397.0,1.54217878]
[1765817959032,0.00011532,86398.0,86397.0,1.54617878]
[1765817961121,0.011569,86440.0,86417.0,0.693912]
[1765817961122,0.0115706,86428.0,86417.0,0.693912]
[1765817961328,0.06231435,86418.0,86417.0,1.054712]
[1765817961524,0.06231435,86418.0,86417.0,1.07529743]
[1765817961928,0.06231435,86418.0,86417.0,1.28339471]
[1765817962430,0.06431435,86418.0,86417.0,1.28339471]
[1765817962633,0.06431435,86418.0,86417.0,1.31250644]
[1765817962830,0.00431435,86418.0,86417.0,1.48595804]
[1765817963039,0.3608,86440.0,86439.0,0.011569]
[1765817963040,1.05794,86440.0,86439.0,0.011569]
[1765817963334,1.05794,86440.0,86424.0,0.1978]
[1765817963335,0.7087091,86439.0,86438.0,0.0115691]
[1765817963529,0.7087091,86439.0,86438.0,0.35624]
[1765817963530,0.8887091,86439.0,86438.0,0.35624]
[1765817964131,0.35631,86432.0,86431.0,0.6825136]
[1765817964337,0.45631,86432.0,86431.0,0.6825136]
[1765817965137,0.80871,86432.0,86431.0,0.0001736]
[1765817965327,0.79914,86432.0,86431.0,0.6825136]
[1765817965526,0.44874,86432.0,86431.0,0.6825136]
[1765817965735,0.104,86432.0,86431.0,0.6825136]
[1765817966434,0.80114,86432.0,86431.0,0.6825136]
[1765817966638,0.104,86432.0,86431.0,0.6825136]
[1765817967124,0.80114,86432.0,86431.0,0.0001736]
[1765817967327,0.0115717,86420.0,86419.0,0.68234]
[1765817967531,0.004,86432.0,86431.0,0.68234]
[1765817967727,0.094,86432.0,86431.0,0.68234]
[1765817968337,0.092,86432.0,86431.0,0.68234]
[1765817968631,0.10357,86432.0,86431.0,0.68234]
[1765817968821,0.69714,86428.0,86427.0,0.55404]
[1765817969026,0.002,86432.0,86431.0,0.6939101]
[1765817969225,0.102,86432.0,86431.0,0.6939101]
[1765817970121,0.1,86432.0,86431.0,0.6939101]
[1765817970340,0.102,86432.0,86431.0,0.6939101]
[1765817970637,0.102,86432.0,86431.0,0.6959101]
[1765817971028,0.00017323,86440.0,86439.0,0.714159]
[1765817971228,0.10017323,86440.0,86439.0,1.446239]
[1765817971636,0.10017323,86440.0,86439.0,1.56192685]
[1765817974234,0.67603,86434.0,86433.0,0.3676598]
[1765817974441,0.00017323,86440.0,86439.0,0.693169]
[1765817974625,0.07174223,86440.0,86439.0,0.693169]
[1765817974833,0.06017323,86440.0,86439.0,0.693169]
[1765817975536,0.74777213,86440.0,86439.0,0.011569]
[1765817975729,0.67603,86429.0,86428.0,1.0539705]
[1765817975928,0.67603,86429.0,86428.0,1.7858905]
[1765817976132,0.33108,86429.0,86428.0,1.7858905]
[1765817976333,0.3426499,86433.0,86432.0,0.69317]
[1765817976529,0.6875999,86433.0,86432.0,0.69317]
[1765817976729,0.67603,86429.0,86428.0,1.1042905]
[1765817976936,0.33108,86429.0,86428.0,1.1042905]
[1765817977434,0.3426498,86434.0,86433.0,0.3676594]
[1765817977644,0.35852274,86434.0,86433.0,0.6931694]
[1765817977829,0.02744274,86434.0,86433.0,0.6931694]
[1765817978026,0.01174213,86440.0,86439.0,0.693169]
[1765817978236,0.78517896,86440.0,86439.0,0.693169]
[1765817978839,0.78517896,86440.0,86439.0,0.6816]
[1765817980143,0.67603,86429.0,86428.0,1.41352]
[1765817980749,0.67603,86429.0,86428.0,1.52922257]
[1765817981249,0.33108,86429.0,86428.0,1.52922257]
[1765817981453,0.0115702,86431.0,86430.0,0.6816]
[1765817982049,0.67603,86429.0,86428.0,0.001]
[1765817982245,0.70322348,86429.0,86428.0,0.003]
[1765817982450,0.687601,86424.0,86417.0,0.02132076]
[1765817982650,1.03683,86424.0,86423.0,0.6817736]
[1765817984361,0.001,86429.0,86428.0,0.6816]
[1765817984659,0.001,86429.0,86428.0,0.6931705]
[1765817984859,0.67703,86429.0,86428.0,0.6931705]
[1765817985055,0.67603,86429.0,86428.0,0.3676605]
[1765817985256,0.0115703,86430.0,86429.0,0.6816]
[1765817985553,0.0115703,86430.0,86428.0,0.0115705]
[1765817985554,0.0115695,86436.0,86435.0,0.6816]
[1765817985755,0.7175995,86436.0,86435.0,0.6816]
[1765817987056,0.7185995,86436.0,86435.0,0.6816]
[1765817987365,0.36208,86436.0,86435.0,0.6816]
[1765817987855,0.031,86436.0,86435.0,0.6816]
[1765817988057,0.001,86436.0,86435.0,1.5290132]
[1765817988249,0.67603,86456.0,86455.0,0.35609]
[1765817988454,1.2383968,86456.0,86455.0,0.35609]
[1765817988848,0.6875976,86450.0,86449.0,0.88023]
[1765817989057,0.6875976,86450.0,86427.0,0.19863]
[1765817989058,0.67603,86431.0,86430.0,0.91755587]
[1765817989267,0.3608,86441.0,86439.0,0.693169]
[1765817989459,1.08683,86441.0,86440.0,0.6816]
[1765817989962,0.67603,86437.0,86431.0,0.23595587]
[1765817990158,0.67603,86437.0,86436.0,0.6816]
[1765817990364,0.3608,86441.0,86440.0,0.6816]
[1765817990365,1.03783,86441.0,86440.0,0.6816]
[1765817990559,1.07783,86441.0,86440.0,0.6816]
[1765817991150,1.07683,86441.0,86440.0,0.6816]
[1765817991551,0.67603,86432.0,86431.0,0.001]
[1765817991755,0.67603,86432.0,86431.0,0.35709]
[1765817991964,0.67603,86432.0,86431.0,0.001]
[1765817992461,0.67603,86432.0,86427.0,0.93027]
[1765817992663,0.67603,86428.0,86427.0,1.28636]
[1765817992852,0.67603,86428.0,86427.0,0.88023]
[1765817993057,0.67603,86428.0,86427.0,1.05386956]
[1765817993350,0.3608,86441.0,86423.0,0.35609]
[1765817993351,0.67603,86424.0,86423.0,0.35609]
[1765817993552,0.67603,86424.0,86423.0,0.6816]
[1765817993754,0.687601,86424.0,86423.0,0.6816]
[1765817993964,0.67603,86424.0,86423.0,0.79730391]
[1765817994667,0.67603,86424.0,86423.0,0.6816]
[1765817995063,0.687601,86424.0,86423.0,0.6826]
[1765817996063,1.048401,86424.0,86423.0,0.001]
[1765817996468,1.048401,86424.0,86423.0,0.002]
[1765817997156,1.048401,86424.0,86423.0,0.001]
[1765817997570,0.67603,86423.0,86422.0,0.0001736]
[1765817998868,0.67703,86423.0,86422.0,0.0001736]
[1765817999471,0.80703,86423.0,86422.0,0.0001736]
[1765817999862,0.80803,86423.0,86422.0,0.0001736]
[1765818000263,0.6876018,86418.0,86417.0,0.02132076]
[1765818000463,0.6876018,86418.0,86364.0,0.001]
[1765818000464,0.6876024,86414.0,86413.0,0.08259909]
[1765818000660,0.6876048,86396.0,86395.0,0.10358192]
[1765818000868,0.69188,86399.0,86398.0,0.6816]
[1765818001076,0.67603,86391.0,86390.0,0.8918055]
[1765818001265,0.67603,86383.0,86382.0,0.0001736]
[1765818001572,0.67603,86383.0,86382.0,0.6817736]
[1765818001766,0.68575,86383.0,86382.0,0.6817736]
[1765818001960,0.3608,86387.0,86386.0,0.67895]
[1765818002167,0.34949,86389.0,86388.0,0.34866]